Cogmind - Beta 15 @@@ ROGUE MODE // 2025.08.20 @ 21:55:03 Player: Mercey Result: Destroyed by H-55 Commando with Gauss Rifle Performance ------------- Evolutions (0) 0 Regions Visited (4) 800 Robots Destroyed (28) 140 Value Destroyed (814) 814 Prototype IDs (1) 20 Alien Tech Used (0) 0 Bonus (-14) -14 TOTAL SCORE: 1760 Bonus ------- Friendly Fire -14 Cogmind --------- Core Integrity 0/250 Matter 237/300 Energy 159/160 System Corruption 0% Temperature Cool (0) Movement Rolling (120) Ox1 Location -8/Recycling Parts ------- > --- POWER (1) -------- Light Nuclear Core > --- PROPULSION (2) --- Spiked Treads Subdweller Monowheel > --- UTILITY (2) ------ Medium Storage Unit Sensor Array > --- WEAPON (2) ------- Subdweller Machine Gun Grenade Launcher > --- INVENTORY (10) --- Subdweller Monowheel Subdweller Laser Autogun Autogun Autogun Battle Rifle Welding Torch Peak State ------------ > --- POWER ------------ Ion Engine > --- PROPULSION ------- Aluminum Leg Aluminum Leg > --- UTILITY ---------- Medium Storage Unit Splice Drone Bay > --- WEAPON ----------- Autogun Autogun > --- INVENTORY -------- Ion Engine Light Nuclear Core Aluminum Leg Aluminum Leg Heat Sink Sensor Array Autogun Autogun Grenade Launcher Welding Torch [Rating: 16] Favorites ----------- Power Ion Engine Engine Ion Engine Power Core Light Nuclear Core Propulsion Aluminum Leg Treads Spiked Treads Leg Aluminum Leg Wheel Subdweller Monowheel Utility Medium Storage Unit Device Splice Drone Bay Storage Medium Storage Unit Weapon Autogun Ballistic Gun Autogun Launcher Grenade Launcher Special Weapon Welding Torch Build | -11 -10 -10 -10 -8 ------- Run | Yrd Mat Min Sub Rec Slots Evolved . | . . . . . Power . | . . . . . Propulsion . | . . . . . Utility . | . . . . . Weapon . | . . . . . Parts Attached 26 | 5 5 1 15 . Power 3 | 1 . . 2 . Engine 2 | 1 . . 1 . Core 1 | . . . 1 . Reactor . | . . . . . Propulsion 6 | 1 2 . 3 . Treads 1 | . . . 1 . Leg 4 | 1 2 . 1 . Wheel 1 | . . . 1 . Hover . | . . . . . Flight . | . . . . . Utility 6 | 1 1 1 3 . Device 4 | . . 1 3 . Storage 2 | 1 1 . . . Processor . | . . . . . Hackware . | . . . . . Protection . | . . . . . Artifact . | . . . . . Weapon 11 | 2 2 . 7 . Energy Gun . | . . . . . Energy Cannon . | . . . . . Ballistic Gun 9 | 2 2 . 5 . Ballistic Cannon . | . . . . . Launcher 1 | . . . 1 . Special Weapon 1 | . . . 1 . Impact Weapon . | . . . . . Slashing Weapon . | . . . . . Piercing Weapon . | . . . . . Special Melee Weapon . | . . . . . Unidentified Prototypes 1 | . . 1 . . Parts Lost 10 | . . . 10 . Power 2 | . . . 2 . Propulsion 4 | . . . 4 . Utility 2 | . . . 2 . Weapon 2 | . . . 2 . Highest Loss Streak 3 | . . . 3 . To Critical Strikes . | . . . . . Average Backups 7 | 1 5 10 8 7 Power 1 | . 1 2 . . Propulsion . | . . 2 . 1 Utility 1 | . 1 2 1 . Weapon 3 | . 2 3 4 5 Tool/Special . | . . . . . Unused Backups 4 | . 2 . . 2 Power . | . . . . . Propulsion 1 | . . . . 1 Utility . | . . . . . Weapon 3 | . 2 . . 1 Tool/Special . | . . . . . Average Slot Usage (%) 95 | . 89 97 96 100 Engine 11 | . 14 14 10 . Core 2 | . . . 3 14 Treads 3 | . . . 6 14 Leg 19 | . 25 28 15 . Wheel 3 | . . . 5 14 Device 8 | . . 8 12 14 Storage 16 | . 21 17 14 14 Ballistic Gun 24 | . 28 28 23 14 Launcher 2 | . . . 4 14 Peak Build Rating 16 | 5 10 16 16 13 Average Rating 11 | 4 7 13 13 13 On Entrance 8 | . 5 10 16 13 Naked Turns . | . . . . . Heaviest Build 30 | 14 26 29 30 23 Greatest Support 20 | 10 20 20 20 20 Greatest Overweight (x) 4 | 4 1 1 1 1 Average Overweight (x) . | 1 . 1 . 1 Largest Inventory Capacity 10 | 8 10 10 10 10 Average Capacity 9 | 7 9 10 10 10 Most Carried 10 | 3 10 10 10 7 Average Carried 7 | 1 5 10 8 7 Final Capacity 10 | 8 10 10 10 10 Final Carried 10 | 3 10 10 7 7 Class Distribution -------------------- 79% | Mutant 20% | Scavenger-Mutant Dominant Class ---------------- Mutant | -10/Materials Mutant | -10/Mines Mutant | -10/Subcaves Scavenger-Mutant | -8/Recycling Resources | -11 -10 -10 -10 -8 ----------- Run | Yrd Mat Min Sub Rec Matter Collected 1109 | 67 412 88 542 . Remotely . | . . . . . Salvage Created 928 | . 354 88 486 . Parts 53 | . 19 6 28 . Haulers Intercepted 1 | . 1 . . . Recyclers Shooed 1 | . 1 . . . Parts Field Recycled . | . . . . . Retrieved Matter . | . . . . . Parts Self-Destructed 6 | . . . 6 . Prevented . | . . . . . Kills | -11 -10 -10 -10 -8 ------- Run | Yrd Mat Min Sub Rec Combat Hostiles Destroyed 24 | . 8 2 14 . Guns 21 | . 8 2 11 . AOE 3 | . . . 3 . Classes Destroyed 6 | . 4 . 2 . Hauler 1 | . 1 . . . Recycler 1 | . 1 . . . Turret 2 | . . . 2 . Swarmer 7 | . 5 . 2 . Grunt 5 | . 3 2 . . Subdweller 12 | . . . 12 . Best Kill Streak 6 | . 6 1 4 . Combat Bots Only 5 | . 5 1 2 . Max Kills in Single Turn 2 | . 1 1 2 . Gunslinging . | . . . . . Exploded 2 | . . . 2 . Melee . | . . . . . Uniques/NPCs Destroyed . | . . . . . Combat | -11 -10 -10 -10 -8 -------- Run | Yrd Mat Min Sub Rec Hostile Shots Fired 179 | . 36 13 129 1 Missed 56 | . 11 4 41 . Hits 123 | . 25 9 88 1 Projectile 123 | . 25 9 88 1 Damage Taken 1865 | . 252 127 1467 19 Core 255 | . 48 54 134 19 Absorbed by Shields . | . . . . . Core Remaining (%) 100 | 100 . . . . Volleys Fired 113 | . 31 11 71 . Largest 2 | . 2 2 2 . Hottest 53 | . 40 46 53 . Shots Fired 199 | . 62 22 115 . Gun 175 | . 62 22 91 . Cannon . | . . . . . Launcher 14 | . . . 14 . Special 10 | . . . 10 . Kinetic 175 | . 62 22 91 . Thermal 10 | . . . 10 . Explosive 14 | . . . 14 . Electromagnetic . | . . . . . Robot Hit Streak 19 | . 16 9 19 . Robot Miss Streak 4 | . 3 1 4 . Penetration Max . | . . . . . Secondary Targets 1 | . 1 . . . Max Gunslinging Chain 1 | . 1 . . . Shots Hit Robots 119 | . 41 19 59 . Core Hits 51 | . 17 4 30 . Critical Kills . | . . . . . Critical Parts Destroyed 1 | . 1 . . . Critical Strikes 3 | . 1 . 2 . Destroy 3 | . 1 . 2 . Melee Attacks . | . . . . . Impact . | . . . . . Slashing . | . . . . . Piercing . | . . . . . Sneak Attacks . | . . . . . Combat Hostiles . | . . . . . Follow-up Attacks . | . . . . . Damage Inflicted 2273 | . 553 313 1407 . Guns 1771 | . 546 301 924 . Cannons . | . . . . . Explosions 483 | . . . 483 . Melee . | . . . . . Ramming 19 | . 7 12 . . Kinetic 1771 | . 546 301 924 . Thermal . | . . . . . Explosive 483 | . . . 483 . Electromagnetic . | . . . . . Impact . | . . . . . Slashing . | . . . . . Piercing . | . . . . . Highest Corruption . | . . . . . Average Corruption . | . . . . . Corruption Purged . | . . . . . Corruption Blocked . | . . . . . Overload Shots . | . . . . . Overflow Damage . | . . . . . Projectiles . | . . . . . Explosions . | . . . . . Melee . | . . . . . Knockbacks . | . . . . . Impact . | . . . . . Kinetic . | . . . . . Secondary . | . . . . . Self-Inflicted Damage . | . . . . . Shots . | . . . . . Rammed . | . . . . . Targets Rammed 3 | . 2 1 . . Kicked 3 | . 2 1 . . Crushed . | . . . . . Highest Temperature 44 | . 2 44 . . Average Temperature 14 | . 2 16 . . Received Heat Transfer 441 | . 87 72 282 . Siege Activations . | . . . . . Martial Activations . | . . . . . Shielding Activations . | . . . . . Robots Disrupted . | . . . . . Combat Hostiles . | . . . . . Robots Corrupted . | . . . . . Combat Hostiles . | . . . . . Parts Fried . | . . . . . Impact Corruptions . | . . . . . Robots Melted . | . . . . . Combat Hostiles . | . . . . . Parts Melted . | . . . . . Heat Transferred . | . . . . . Parts Sabotaged . | . . . . . Parts Stolen . | . . . . . Parts Stripped . | . . . . . Power Chain Reactions . | . . . . . Alert | -11 -10 -10 -10 -8 ------- Run | Yrd Mat Min Sub Rec Maximum Alert Level . | . . . . . Low Security (%) 100 | 100 100 100 . 100 Level 1 . | . . . . . Level 2 . | . . . . . Level 3 . | . . . . . Level 4 . | . . . . . Level 5 . | . . . . . High Security . | . . . . . Max Security . | . . . . . Peak Influence 140 | . 140 47 . 61 Initial 61 | . . 32 . 61 Average 26 | . 40 10 . 34 Influence Increases 416 | . 211 65 140 . Destroy 0b10 Robot/C 280 | . 160 40 80 . Destroy 0b10 Robot/NC 10 | . 10 . . . Destroy Leader 42 | . 32 10 . . Successful Hack 8 | . 8 . . . Destroy Structure 1 | . 1 . . . Lose Combat Pursuer 75 | . . 15 60 . Influence Decreases 415 | . 127 149 12 127 Entered New Map 119 | . . 52 . 67 Time Decay 296 | . 127 97 12 60 Squads Dispatched . | . . . . . Investigation . | . . . . . Extermination . | . . . . . Reinforcement . | . . . . . Assault . | . . . . . Garrison . | . . . . . Intercept . | . . . . . Searches Triggered . | . . . . . Construction Impeded . | . . . . . Haulers Reinforced . | . . . . . Active Scanning Responses . | . . . . . Cargo Convoy Interrupts . | . . . . . Stealth | -11 -10 -10 -10 -8 --------- Run | Yrd Mat Min Sub Rec Distress Signals 1 | . 1 . . . Communications Jammed . | . . . . . Distress Signals . | . . . . . Times Spotted 40 | . 18 3 17 2 Peak Tracking Total 7 | . 7 2 4 3 Tactical Retreats 2 | . . 1 1 . Traps | -11 -10 -10 -10 -8 ------- Run | Yrd Mat Min Sub Rec Traps Triggered 1 | . . . 1 . Indirectly . | . . . . . Trap Hack Attempts . | . . . . . Triggered . | . . . . . Disarmed . | . . . . . Reprogrammed . | . . . . . Reused . | . . . . . Traps Extracted . | . . . . . Installed . | . . . . . Triggered . | . . . . . Machines | -11 -10 -10 -10 -8 ---------- Run | Yrd Mat Min Sub Rec Machines Disabled 2 | . . . 2 . Max in Single Turn 1 | . . . 1 . Machines Repaired . | . . . . . Machines Dismantled . | . . . . . Machines Sabotaged . | . . . . . Overloaded Fab Kills . | . . . . . Hacking | -11 -10 -10 -10 -8 --------- Run | Yrd Mat Min Sub Rec Machines Accessed 6 | . 2 1 . 3 Terminals 3 | . 1 . . 2 Fabricators . | . . . . . Repair Stations . | . . . . . Recycling Units 2 | . 1 . . 1 Scanalyzers . | . . . . . Garrison Access . | . . . . . Total Hacks 9 | . 2 1 . 6 Successful 7 | . 2 1 . 4 Failed 2 | . . . . 2 Catastrophic 1 | . . . . 1 Database Lockouts . | . . . . . Manual 2 | . 1 . . 1 Terminals 6 | . 1 . . 5 Fabricators . | . . . . . Repair Stations . | . . . . . Recycling Units 2 | . 1 . . 1 Scanalyzers . | . . . . . Garrison Access . | . . . . . Terminal Hacks 5 | . 1 1 . 3 Record 3 | . . . . 3 Open Door 1 | . . 1 . . Branch Access Points 1 | . 1 . . . Fabricator Hacks . | . . . . . Repair Station Hacks . | . . . . . Recycling Unit Hacks 2 | . 1 . . 1 Report Inventory 2 | . 1 . . 1 Scanalyzer . | . . . . . Garrison Access Hacks . | . . . . . Unauthorized Hacks . | . . . . . Terminals . | . . . . . Fabricators . | . . . . . Repair Stations . | . . . . . Recycling Units . | . . . . . Scanalyzers . | . . . . . Garrison Access . | . . . . . Data Cores Recovered . | . . . . . Used . | . . . . . Hacking Detections 1 | . . . . 1 Full Trace Events . | . . . . . Feedback Events . | . . . . . Feedback Blocked . | . . . . . Robot Schematics Acquired . | . . . . . Robots Built . | . . . . . Authchips . | . . . . . Time . | . . . . . Total Robot Build Rating . | . . . . . Part Schematics Acquired . | . . . . . Parts Built . | . . . . . Authchips . | . . . . . Time . | . . . . . Total Part Build Rating . | . . . . . Parts Repaired . | . . . . . Time . | . . . . . Parts Recycled . | . . . . . Recycled Matter . | . . . . . Retrieved Matter . | . . . . . Retrieved Components . | . . . . . Parts Scanalyzed . | . . . . . Part Schematics Acquired . | . . . . . Parts Damaged . | . . . . . Bothacking | -11 -10 -10 -10 -8 ------------ Run | Yrd Mat Min Sub Rec Used RIF Installer . | . . . . . Robots Hacked . | . . . . . Non-combat . | . . . . . Combat . | . . . . . Robot Hacks Applied . | . . . . . Relay Couplers Released . | . . . . . Fabnet Peak Effective % . | . . . . . Robots Rewired . | . . . . . Allies Hacked . | . . . . . Hacks Repelled . | . . . . . Allies | -11 -10 -10 -10 -8 -------- Run | Yrd Mat Min Sub Rec Total Allies . | . . . . . Largest Group . | . . . . . Highest-Rated Group . | . . . . . Highest-Rated Ally . | . . . . . Total Orders . | . . . . . Ally Attacks 10 | . . . 10 . Total Damage 49 | . . . 49 . Kills . | . . . . . Allies Corrupted . | . . . . . Allies Melted . | . . . . . Intel | -11 -10 -10 -10 -8 ------- Run | Yrd Mat Min Sub Rec Active Infowar (turns) 624 | . . . 502 122 Optics 488 | . . . 488 . Sensors 136 | . . . 14 122 Robot Analysis Total . | . . . . . Derelict Logs Recovered 2 | . . 2 . . Drone Launches 10 | . . . 10 . Drone Recoveries 6 | . . . 6 . Exploration | -11 -10 -10 -10 -8 ------------- Run | Yrd Mat Min Sub Rec Turns Passed 2578 | 65 579 487 1325 122 Spaces Moved 1365 | 31 288 238 708 100 Core 10 | 10 . . . . Treads 22 | . . . 22 . Legs 880 | 21 288 238 333 . Wheels 453 | . . . 353 100 Hover . | . . . . . Flight . | . . . . . Fastest Speed 50 | 50 120 190 120 120 Average Speed 161 | 180 162 190 156 120 Slowest Speed 260 | 250 190 190 260 120 Overloaded Moves . | . . . . . Propulsion Burnouts . | . . . . . Robots Hopped . | . . . . . Potential Cave-ins . | . . . . . Cave-ins Triggered . | . . . . . Exploration Rate (%) 34 | 4 54 59 33 24 Regions Visited 4 Branch Regions 3 Pre-discovered Areas . | . . . . . Known Exits Taken 1 | . 1 . . . Unknown Exits Taken 3 | 1 . 1 1 . Scrap Searched 1 | . . 1 . . Spaces Dug . | . . . . . Terrain Destroyed 27 | . . . 27 . Melee . | . . . . . Projectile . | . . . . . AOE 27 | . . . 27 . Terrain Rammed . | . . . . . Walls Destroyed . | . . . . . Machines Disabled . | . . . . . Actions | -11 -10 -10 -10 -8 --------- Run | Yrd Mat Min Sub Rec Total 1552 | 38 338 255 818 103 Wait 16 | . . 4 12 . Move 1361 | 30 287 237 707 100 Hop . | . . . . . Pick Up 17 | 3 9 . 5 . Fast Attach 9 | 5 1 1 2 . Attach 14 | . 1 . 13 . Detach 5 | . . . 5 . Swap 5 | . 3 . 2 . Drop 6 | . 4 1 1 . Fire 113 | . 31 11 71 . Melee . | . . . . . Ram . | . . . . . Kick 3 | . 2 1 . . Crush . | . . . . . Escape Stasis . | . . . . . Rewire 3 | . . . . 3 Trap . | . . . . . Miscellaneous . | . . . . . Route ------- -11/Scrapyard -10/Materials -10/Mines (discovered 3 exits: *Mat x2 / [*Sub]) -10/Subcaves -8/Recycling History --------- Turn | Location | Event 18 | -11/Scrapyard | Discovered new exit (range 16) 66 | -11/Scrapyard | Entered Materials 78 | -10/Materials | Identified exit to Mines 307 | -10/Materials | Build established: Mutant 645 | -10/Materials | Entered Mines 674 | -10/Mines | Identified exit to Materials 680 | -10/Mines | Discovered exit to Materials (range 5) 835 | -10/Mines | Found the Drone Emporium 846 | -10/Mines | Found Prototype Device 846 | -10/Mines | Identified Splice Drone Bay 1102 | -10/Mines | Discovered new exit (range 10) 1132 | -10/Mines | Entered Subcaves 1133 | -10/Subcaves | Approached by a straggling Scientist 1228 | -10/Subcaves | Lost 3 parts (1p2n) 1607 | -10/Subcaves | Core integrity fell below 50% 1710 | -10/Subcaves | Ambushed by angry Subdweller bent on revenge 1769 | -10/Subcaves | Lost 4 allies 1819 | -10/Subcaves | Lost 3 parts (1u2w) 2030 | -10/Subcaves | A swath of the cavern ceiling suddenly collapsed 2140 | -10/Subcaves | Ambushed by Subdwellers from Twisted Machinery 2146 | -10/Subcaves | Core integrity fell below 20% 2364 | -10/Subcaves | Build established: Scavenger-Mutant 2406 | -10/Subcaves | Discovered new exit (range 16) 2457 | -10/Subcaves | Entered Recycling 2579 | -8/Recycling | Destroyed by H-55 Commando with Gauss Rifle Last Messages --------------- These relay nodes for monitoring and facilitating traffic have resulted in much greater efficiency throughout [Complex 0b10]. Although primarily responsible for pattern analysis aimed at long-term improvements, eventually TF Nodes could be expanded to include more immediate detection and response efforts in support of nearby garrisons. Attempting to rewire R-06 Scavenger. R-06 Scavenger is unpowered. Attempting to rewire R-06 Scavenger. R-06 Scavenger is unpowered. Attempting to rewire R-06 Scavenger. R-06 Scavenger is unpowered. Connecting with Recycling Unit... >>Recycling(Report) Matter reserves: 0 Inventory: Empty H-55 Commando springs to life. Penetrated by Slug. Map ----- +----------------------------------------------------+ | ???????????????????#######+######### #????# | | ????????????????????????# #????# | | ?????????????????######## #########"T"## #????# | | ?????????????????# # #???????###### #????# | | ?????????????????# # #????????????# #????# | | ?????????????????# + #????????????# #????# | | ?????????????????# # #?????????????+#????# | | ?????????????????# # #???????????????????# | | ?????????????????# # #???????????????????# | | ?????????????????# # #??????????????????? | | ?????????????????# # #??????????????????? | | ?????????????????# # #??????????????????? | | ?????????????????# # #??????????????????? | | ?????????????????# # #??????????????????? | | ?????????????????# # #???????????????????## | | ?????????????????# # #????????????????????? | | ?????????????????# ###### r #????????????????????? | | ?????????????????##?????# ###??????????????????? | | ????????????????????????# ""#??????????????????? | | ????????????????????????# uY"#??????????????????? | | ???????????????#????????# ""#??????????????????? | | ???????????????# ??????# u###??????????????????? | | ???????????????#!i[[????# #????????????????????? | | ???????????????#[h ! ??# r#????????????????????? | | ???????????????# Y! u # #????????????????????? | | ???????????????# u h /@ +????????????????????? | | ???????????????# p h # #????????????????????? | | ???????????????#b s ??# #????????????????????? | | ???????????????# ak!????# r#????????????????????? | | ???????????????# g??????# #????????????????????? | | ???????????????#????????# #????????????????????? | | ????????????????????????### #????????????????????? | | ??????????????????????????? #????????????????????? | | ??????????????????????????? #????????????????????? | | ??????????????????????????? #????????????????????? | | ??????????????????????????? #????????????????????? | | ??????????????????????????? #????????????????????? | | ??????????????????????????? ?????????????????????? | | ??????????????????????????? ?????????????????????? | | ?????????????????????????????????????????????????? | | ?????????????????????????????????????????????????? | | ?????????????????????????????????????????????????? | | ?????????????????????????????????????????????????? | | ?????????????????????????????????????????????????? | | ?????????????????????????????????????????????????? | | ?????????????????????????????????????????????????? | | ?????????????????????????????????????????????????? | | ?????????????????????????????????????????????????? | | ?????????????????????????????????????????????????? | | ?????????????????????????????????????????????????? | +----------------------------------------------------+ Best States ------------- Heat Dissipation 35 Energy Generation 14 Energy Capacity 250 Matter Stores 300 Matter Capacity 300 Sight Range 21 Robot Scan Range 14 Terrain Scan Density 10 Evasion (%) 55 Recoil Reduction 1 Item Schematics ----------------- None Robot Schematics ------------------ None Fabricated ------------ Nothing Repaired ---------- Nothing Alien Tech Used ----------------- None Achievements -------------- Release The Drones! Challenges ------------ None Game ------ Seed AblativeElectronKit Manual? 0 Play Time 00:23:01 Cumulative 32.0 hours Start 2025.08.20 @ 21:32:55 End 2025.08.20 @ 21:55:03 Sessions 1 Manual Loads 0 Difficulty Rogue Special Mode None Game No. 51 Rogue 51 Adventurer 0 Explorer 0 Win Type - Total 0 Types 0/0/0/0/0/0/0/0/0/0 Lore% 11 Gallery% 27 Achievement% 23 Wizard Run 0 Options --------- Layout 1 ASCII 0 Keyboard 1 Movement Arrows Keybinds 0 Fullscreen 1 Font 40/X11 Map View 51x44 Zoom Use 0% Tactical HUD 0 Map Filters NONE Filters NONE Steam 1 RUN: 816ac3a1-879d-4455-98e6-43aad4998cc8